[Event "Late-Titled-Tuesday-Blitz-January-16-2024"]
[Site "Chess.com"]
[Date "2024.01.16"]
[Round "3"]
[White "JCVanDamme10"]
[Black "biostatistician"]
[Result "0-1"]
[WhiteElo "2319"]
[BlackElo "2574"]
[TimeControl "180+1"]
[EndTime "14:28:50 PST"]
[Termination "biostatistician won by checkmate"]

1. e4 {[%clk 0:02:46.1]} 1... e5 {[%clk 0:02:59.5]} 2. Nf3 {[%clk 0:02:45.7]}
2... Nc6 {[%clk 0:02:59.4]} 3. Bb5 {[%clk 0:02:45.6]} 3... Nf6 {[%clk
0:02:57.5]} 4. d3 {[%clk 0:02:45]} 4... d6 {[%clk 0:02:56.8]} 5. O-O {[%clk
0:02:44.7]} 5... Bd7 {[%clk 0:02:56.5]} 6. c3 {[%clk 0:02:43.6]} 6... g6 {[%clk
0:02:56.2]} 7. Re1 {[%clk 0:02:41.3]} 7... Bg7 {[%clk 0:02:56.3]} 8. d4 {[%clk
0:02:39.3]} 8... O-O {[%clk 0:02:56.5]} 9. Bg5 {[%clk 0:02:34.4]} 9... h6 {[%clk
0:02:55.7]} 10. Bxf6 {[%clk 0:02:32.4]} 10... Bxf6 {[%clk 0:02:54.7]} 11. d5
{[%clk 0:02:25.6]} 11... Nb8 {[%clk 0:02:54.7]} 12. Bxd7 {[%clk 0:02:23.9]}
12... Nxd7 {[%clk 0:02:55.6]} 13. Nbd2 {[%clk 0:02:20.7]} 13... Bg5 {[%clk
0:02:50]} 14. Nc4 {[%clk 0:02:21.2]} 14... f5 {[%clk 0:02:46.6]} 15. Na5 {[%clk
0:02:15.5]} 15... Rb8 {[%clk 0:02:40.4]} 16. Qb3 {[%clk 0:02:14]} 16... Nc5
{[%clk 0:02:38.7]} 17. Qc4 {[%clk 0:02:09.1]} 17... Nxe4 {[%clk 0:02:35.8]} 18.
Rxe4 {[%clk 0:02:07.9]} 18... fxe4 {[%clk 0:02:35.4]} 19. Qxe4 {[%clk
0:02:08.6]} 19... Rf4 {[%clk 0:02:33.6]} 20. Qxg6+ {[%clk 0:02:07.2]} 20... Kh8
{[%clk 0:02:32.6]} 21. h4 {[%clk 0:01:59.5]} 21... Qf6 {[%clk 0:01:59.6]} 22.
Qxf6+ {[%clk 0:01:13.4]} 22... Bxf6 {[%clk 0:02:00.5]} 23. Nb3 {[%clk
0:01:08.9]} 23... Bxh4 {[%clk 0:01:56.8]} 24. Nxh4 {[%clk 0:01:06.6]} 24... Rxh4
{[%clk 0:01:56.7]} 25. g3 {[%clk 0:01:07.1]} 25... Re4 {[%clk 0:01:54.8]} 26.
Kf1 {[%clk 0:01:03.7]} 26... Rf8 {[%clk 0:01:54.1]} 27. Nd2 {[%clk 0:01:02.6]}
27... Rg4 {[%clk 0:01:51.9]} 28. Kg2 {[%clk 0:01:02.4]} 28... Kg7 {[%clk
0:01:51.1]} 29. Re1 {[%clk 0:01:02]} 29... a5 {[%clk 0:01:47.8]} 30. Ne4 {[%clk
0:01:01.8]} 30... b6 {[%clk 0:01:45]} 31. f3 {[%clk 0:00:59.9]} 31... Rg6 {[%clk
0:01:45.2]} 32. c4 {[%clk 0:00:55.4]} 32... h5 {[%clk 0:01:38.8]} 33. Rh1 {[%clk
0:00:54.2]} 33... Rh8 {[%clk 0:01:39]} 34. Rh4 {[%clk 0:00:52.3]} 34... Rh7
{[%clk 0:01:35.7]} 35. a4 {[%clk 0:00:50.8]} 35... Rh8 {[%clk 0:01:32.4]} 36. b3
{[%clk 0:00:50.6]} 36... Kh6 {[%clk 0:01:25.9]} 37. Rh1 {[%clk 0:00:45.9]} 37...
Rh7 {[%clk 0:01:23.1]} 38. Kf2 {[%clk 0:00:44]} 38... Kg7 {[%clk 0:01:19.7]} 39.
Rh4 {[%clk 0:00:42]} 39... Rhh6 {[%clk 0:01:17.2]} 40. Kg2 {[%clk 0:00:39.9]}
40... Kf7 {[%clk 0:01:17.4]} 41. Kf2 {[%clk 0:00:39.3]} 41... Ke7 {[%clk
0:01:17.1]} 42. Ke3 {[%clk 0:00:38.1]} 42... Kd7 {[%clk 0:01:17.1]} 43. Rh3
{[%clk 0:00:36.2]} 43... c6 {[%clk 0:01:16.9]} 44. dxc6+ {[%clk 0:00:35.2]}
44... Kxc6 {[%clk 0:01:17.1]} 45. Nc3 {[%clk 0:00:34.7]} 45... Rg7 {[%clk
0:01:05]} 46. Nd5 {[%clk 0:00:32.5]} 46... Rf7 {[%clk 0:01:04.2]} 47. Rh4 {[%clk
0:00:29.9]} 47... Rh8 {[%clk 0:01:02.4]} 48. Rh3 {[%clk 0:00:28.2]} 48... Rhf8
{[%clk 0:01:02]} 49. f4 {[%clk 0:00:26.9]} 49... exf4+ {[%clk 0:00:59.3]} 50.
Nxf4 {[%clk 0:00:26.9]} 50... Re8+ {[%clk 0:00:55.1]} 51. Kf3 {[%clk 0:00:26.2]}
51... Re5 {[%clk 0:00:55.2]} 52. Rh1 {[%clk 0:00:23.5]} 52... Kc5 {[%clk
0:00:49.8]} 53. Rd1 {[%clk 0:00:23.1]} 53... Rf6 {[%clk 0:00:48.3]} 54. Kg2
{[%clk 0:00:19.7]} 54... Kb4 {[%clk 0:00:40.3]} 55. Nd3+ {[%clk 0:00:19.5]}
55... Kxb3 {[%clk 0:00:40.7]} 56. Nxe5 {[%clk 0:00:20.1]} 56... dxe5 {[%clk
0:00:41.6]} 57. Rd5 {[%clk 0:00:19.5]} 57... Re6 {[%clk 0:00:40.7]} 58. c5
{[%clk 0:00:17.3]} 58... bxc5 {[%clk 0:00:41.6]} 59. Rxc5 {[%clk 0:00:17.3]}
59... Kxa4 {[%clk 0:00:42.2]} 60. Kf3 {[%clk 0:00:15.1]} 60... Kb4 {[%clk
0:00:42.4]} 61. Rc1 {[%clk 0:00:14.1]} 61... a4 {[%clk 0:00:43.3]} 62. Ke4
{[%clk 0:00:14.5]} 62... a3 {[%clk 0:00:43.1]} 63. Rb1+ {[%clk 0:00:14.5]} 63...
Kc3 {[%clk 0:00:43]} 64. Rb8 {[%clk 0:00:07.8]} 64... Ra6 {[%clk 0:00:40.3]} 65.
Rc8+ {[%clk 0:00:06.4]} 65... Kd2 {[%clk 0:00:40.1]} 66. Rd8+ {[%clk 0:00:05.5]}
66... Ke2 {[%clk 0:00:40.1]} 67. Rc8 {[%clk 0:00:01.6]} 67... a2 {[%clk
0:00:39.8]} 68. Rc2+ {[%clk 0:00:02.1]} 68... Kf1 {[%clk 0:00:40]} 69. Rxa2
{[%clk 0:00:02.3]} 69... Rxa2 {[%clk 0:00:39.4]} 70. Kxe5 {[%clk 0:00:02.9]}
70... Ra4 {[%clk 0:00:39]} 71. Kf5 {[%clk 0:00:02.5]} 71... Rg4 {[%clk
0:00:39.4]} 72. Ke5 {[%clk 0:00:01.8]} 72... Rxg3 {[%clk 0:00:40.3]} 73. Kf4
{[%clk 0:00:02.6]} 73... h4 {[%clk 0:00:41]} 74. Kf5 {[%clk 0:00:02.3]} 74...
Rg2 {[%clk 0:00:40.5]} 75. Kf6 {[%clk 0:00:03.2]} 75... h3 {[%clk 0:00:41.2]}
76. Kf7 {[%clk 0:00:04.1]} 76... h2 {[%clk 0:00:42]} 77. Kf8 {[%clk 0:00:05]}
77... h1=Q {[%clk 0:00:42.9]} 78. Ke8 {[%clk 0:00:05.9]} 78... Qh7 {[%clk
0:00:42.8]} 79. Kd8 {[%clk 0:00:05]} 79... Rg8# {[%clk 0:00:43.7]} 0-1

[Event "Late-Titled-Tuesday-Blitz-January-16-2024"]
[Site "Chess.com"]
[Date "2024.01.16"]
[Round "3"]
[White "Felix-Rose"]
[Black "ahmedkandiliii"]
[Result "0-1"]
[WhiteElo "2232"]
[BlackElo "2423"]
[TimeControl "180+1"]
[EndTime "14:28:51 PST"]
[Termination "ahmedkandiliii won on time"]

1. e4 {[%clk 0:02:59.6]} 1... e5 {[%clk 0:02:43.4]} 2. Nf3 {[%clk 0:02:59.2]}
2... Nc6 {[%clk 0:02:39.9]} 3. Bb5 {[%clk 0:02:57.2]} 3... a6 {[%clk 0:02:40]}
4. Ba4 {[%clk 0:02:56.9]} 4... Nf6 {[%clk 0:02:39.5]} 5. d3 {[%clk 0:02:56.2]}
5... Bc5 {[%clk 0:02:33.9]} 6. c3 {[%clk 0:02:54.5]} 6... O-O {[%clk 0:02:33.5]}
7. Nbd2 {[%clk 0:02:52.6]} 7... d6 {[%clk 0:02:33]} 8. h3 {[%clk 0:02:50.9]}
8... Bb6 {[%clk 0:02:29.6]} 9. Nf1 {[%clk 0:02:46]} 9... Ne7 {[%clk 0:02:29.3]}
10. Nh4 {[%clk 0:02:13.7]} 10... Ng6 {[%clk 0:02:22.4]} 11. Nxg6 {[%clk
0:02:11.9]} 11... fxg6 {[%clk 0:02:23.3]} 12. Bb3+ {[%clk 0:02:08.2]} 12... Kh8
{[%clk 0:02:22.7]} 13. Be3 {[%clk 0:02:07.7]} 13... Bxe3 {[%clk 0:02:21.6]} 14.
Nxe3 {[%clk 0:02:08]} 14... Nh5 {[%clk 0:02:21.2]} 15. g3 {[%clk 0:02:02.3]}
15... Qg5 {[%clk 0:02:17.4]} 16. h4 {[%clk 0:01:45.3]} 16... Qf6 {[%clk
0:02:17.1]} 17. Qe2 {[%clk 0:01:38.5]} 17... Bd7 {[%clk 0:02:16.4]} 18. O-O-O
{[%clk 0:01:38]} 18... Qxf2 {[%clk 0:02:11]} 19. Qxf2 {[%clk 0:01:09.2]} 19...
Rxf2 {[%clk 0:02:11.9]} 20. g4 {[%clk 0:01:08.3]} 20... Ng3 {[%clk 0:02:10.6]}
21. Rh3 {[%clk 0:01:07.4]} 21... Ne2+ {[%clk 0:02:09.5]} 22. Kb1 {[%clk
0:01:06.9]} 22... Raf8 {[%clk 0:02:06.7]} 23. h5 {[%clk 0:01:05.4]} 23... Nf4
{[%clk 0:02:04.2]} 24. Rhh1 {[%clk 0:00:56]} 24... gxh5 {[%clk 0:02:01.6]} 25.
gxh5 {[%clk 0:00:43.4]} 25... c6 {[%clk 0:01:49.6]} 26. h6 {[%clk 0:00:37.9]}
26... g5 {[%clk 0:01:47.9]} 27. d4 {[%clk 0:00:37.7]} 27... exd4 {[%clk
0:01:45]} 28. Rxd4 {[%clk 0:00:35.6]} 28... Rf6 {[%clk 0:01:43.7]} 29. e5 {[%clk
0:00:35]} 29... Rf8 {[%clk 0:01:35.6]} 30. Rxd6 {[%clk 0:00:33.2]} 30... Bc8
{[%clk 0:01:34.3]} 31. e6 {[%clk 0:00:28.7]} 31... Ng6 {[%clk 0:01:26.9]} 32.
Rhd1 {[%clk 0:00:21.6]} 32... Re8 {[%clk 0:01:16.9]} 33. Rd8 {[%clk 0:00:19.3]}
33... Rff8 {[%clk 0:01:15.9]} 34. Rxe8 {[%clk 0:00:14.7]} 34... Rxe8 {[%clk
0:01:16.1]} 35. Nf5 {[%clk 0:00:13.9]} 35... g4 {[%clk 0:00:48.7]} 36. Kc1
{[%clk 0:00:14]} 36... g3 {[%clk 0:00:40.3]} 37. Nxg3 {[%clk 0:00:14]} 37... Nf8
{[%clk 0:00:27.7]} 38. e7 {[%clk 0:00:12.7]} 38... Nd7 {[%clk 0:00:25.8]} 39.
Nf5 {[%clk 0:00:11.9]} 39... Nf6 {[%clk 0:00:16.5]} 40. Rd8 {[%clk 0:00:11.2]}
40... Bxf5 {[%clk 0:00:15]} 41. Bf7 {[%clk 0:00:09.9]} 41... Bg6 {[%clk
0:00:15.2]} 42. Bxe8 {[%clk 0:00:08.9]} 42... Bxe8 {[%clk 0:00:15.1]} 43. Rb8
{[%clk 0:00:08.5]} 43... Kg8 {[%clk 0:00:15.6]} 44. Rxb7 {[%clk 0:00:08.8]}
44... Kf7 {[%clk 0:00:16.5]} 45. Ra7 {[%clk 0:00:08.9]} 45... Nd7 {[%clk
0:00:17.1]} 46. Rxa6 {[%clk 0:00:09.2]} 46... Kxe7 {[%clk 0:00:16.4]} 47. Rxc6
{[%clk 0:00:09]} 47... Ne5 {[%clk 0:00:17]} 48. Rc7+ {[%clk 0:00:09.5]} 48...
Bd7 {[%clk 0:00:17.3]} 49. a4 {[%clk 0:00:09.6]} 49... Kd6 {[%clk 0:00:17.9]}
50. Rb7 {[%clk 0:00:08.9]} 50... Kc6 {[%clk 0:00:15.6]} 51. Rb4 {[%clk
0:00:09.2]} 51... Nd3+ {[%clk 0:00:15]} 52. Kc2 {[%clk 0:00:09.5]} 52... Nxb4+
{[%clk 0:00:15.9]} 53. cxb4 {[%clk 0:00:10.4]} 53... Kd5 {[%clk 0:00:15.7]} 54.
b5 {[%clk 0:00:09.7]} 54... Kc5 {[%clk 0:00:15.7]} 55. Kc3 {[%clk 0:00:10.3]}
55... Be8 {[%clk 0:00:14.8]} 56. b4+ {[%clk 0:00:11.2]} 56... Kd5 {[%clk
0:00:15.1]} 57. a5 {[%clk 0:00:11.1]} 57... Bxb5 {[%clk 0:00:14.2]} 58. Kd2
{[%clk 0:00:11.8]} 58... Kc4 {[%clk 0:00:12.3]} 59. Ke3 {[%clk 0:00:12.3]} 59...
Kxb4 {[%clk 0:00:12.6]} 60. Kf4 {[%clk 0:00:13.2]} 60... Kxa5 {[%clk 0:00:11.9]}
0-1

[Event "Late-Titled-Tuesday-Blitz-January-16-2024"]
[Site "Chess.com"]
[Date "2024.01.16"]
[Round "3"]
[White "GMKrikor"]
[Black "vidavi"]
[Result "1-0"]
[WhiteElo "2722"]
[BlackElo "2475"]
[TimeControl "180+1"]
[EndTime "14:29:05 PST"]
[Termination "GMKrikor won by resignation"]

1. Nf3 {[%clk 0:03:00.9]} 1... c5 {[%clk 0:02:59.6]} 2. c4 {[%clk 0:03:00.6]}
2... Nc6 {[%clk 0:03:00.1]} 3. Nc3 {[%clk 0:03:00.4]} 3... g6 {[%clk 0:03:00.1]}
4. d4 {[%clk 0:02:58.5]} 4... cxd4 {[%clk 0:03:00]} 5. Nxd4 {[%clk 0:02:59.4]}
5... Bg7 {[%clk 0:03:00.4]} 6. e3 {[%clk 0:02:59.7]} 6... Nf6 {[%clk 0:03:00.6]}
7. Be2 {[%clk 0:02:58.7]} 7... O-O {[%clk 0:02:59.1]} 8. Nc2 {[%clk 0:02:59.1]}
8... d6 {[%clk 0:02:57.7]} 9. e4 {[%clk 0:02:59]} 9... Be6 {[%clk 0:02:55.3]}
10. Be3 {[%clk 0:02:58.5]} 10... Ne5 {[%clk 0:02:51.2]} 11. b3 {[%clk 0:02:57]}
11... Qa5 {[%clk 0:02:49.3]} 12. Bd2 {[%clk 0:02:50.8]} 12... Rfc8 {[%clk
0:02:37.9]} 13. O-O {[%clk 0:02:47.4]} 13... Qd8 {[%clk 0:02:36.7]} 14. h3
{[%clk 0:02:44.8]} 14... Ned7 {[%clk 0:02:28.4]} 15. f4 {[%clk 0:02:25.2]} 15...
Nc5 {[%clk 0:02:27]} 16. Bf3 {[%clk 0:02:19.9]} 16... Rab8 {[%clk 0:02:07.6]}
17. Be3 {[%clk 0:01:59]} 17... a6 {[%clk 0:01:25.4]} 18. Nd4 {[%clk 0:01:58.7]}
18... Bd7 {[%clk 0:01:23.8]} 19. Rc1 {[%clk 0:01:43.3]} 19... b5 {[%clk
0:01:20.5]} 20. e5 {[%clk 0:01:19.6]} 20... Ne8 {[%clk 0:01:19.8]} 21. b4 {[%clk
0:01:03.2]} 21... Ne6 {[%clk 0:01:07.6]} 22. Nxe6 {[%clk 0:01:02.8]} 22... Bxe6
{[%clk 0:01:04.6]} 23. cxb5 {[%clk 0:01:03.2]} 23... axb5 {[%clk 0:01:01.9]} 24.
Ba7 {[%clk 0:00:56.4]} 24... dxe5 {[%clk 0:00:51]} 25. Qxd8 {[%clk 0:00:54.6]}
25... Rxd8 {[%clk 0:00:51]} 26. Bxb8 {[%clk 0:00:54.7]} 26... Rxb8 {[%clk
0:00:48.8]} 27. fxe5 {[%clk 0:00:52.3]} 27... Bxe5 {[%clk 0:00:47.8]} 28. Nd5
{[%clk 0:00:50.9]} 28... Bd6 {[%clk 0:00:34.5]} 29. Rfd1 {[%clk 0:00:43.8]}
29... Kg7 {[%clk 0:00:33.5]} 30. a3 {[%clk 0:00:42.9]} 30... Ra8 {[%clk
0:00:31.3]} 31. Nf4 {[%clk 0:00:28.6]} 31... Rxa3 {[%clk 0:00:28]} 32. Nxe6+
{[%clk 0:00:28.8]} 32... fxe6 {[%clk 0:00:28.9]} 33. Bc6 {[%clk 0:00:17.3]}
33... Nc7 {[%clk 0:00:26.8]} 34. Bd7 {[%clk 0:00:17.9]} 34... Nd5 {[%clk
0:00:23.3]} 35. Bxb5 {[%clk 0:00:17.8]} 35... Nxb4 {[%clk 0:00:19.7]} 36. Be2
{[%clk 0:00:15.9]} 36... Re3 {[%clk 0:00:17.8]} 37. Bf3 {[%clk 0:00:15.4]} 37...
Re5 {[%clk 0:00:17.7]} 38. Re1 {[%clk 0:00:15.2]} 38... Rxe1+ {[%clk 0:00:14.3]}
39. Rxe1 {[%clk 0:00:16.1]} 39... Kf6 {[%clk 0:00:14.6]} 40. Bg4 {[%clk
0:00:15.7]} 40... e5 {[%clk 0:00:13.5]} 41. Bf3 {[%clk 0:00:16.3]} 41... Nc2
{[%clk 0:00:12]} 42. Rf1 {[%clk 0:00:16.2]} 42... Bc5+ {[%clk 0:00:11.8]} 43.
Kh1 {[%clk 0:00:15.6]} 43... Ne3 {[%clk 0:00:12.2]} 44. Rc1 {[%clk 0:00:14.6]}
44... Bd6 {[%clk 0:00:11.5]} 45. Be4 {[%clk 0:00:14.4]} 45... Nf5 {[%clk
0:00:11.3]} 46. Kh2 {[%clk 0:00:13.4]} 46... Nd4 {[%clk 0:00:10.2]} 47. Rf1+
{[%clk 0:00:13.6]} 47... Kg7 {[%clk 0:00:10]} 48. h4 {[%clk 0:00:11.8]} 48... e6
{[%clk 0:00:06.2]} 49. g3 {[%clk 0:00:12.3]} 49... Nf5 {[%clk 0:00:06.4]} 50.
Kh3 {[%clk 0:00:12.5]} 50... Bc5 {[%clk 0:00:06.6]} 51. Rb1 {[%clk 0:00:11.6]}
51... Bf2 {[%clk 0:00:06.7]} 52. Rb3 {[%clk 0:00:11.7]} 52... h5 {[%clk
0:00:05.6]} 53. Rf3 {[%clk 0:00:11.1]} 53... Bd4 {[%clk 0:00:04.9]} 54. Rf1
{[%clk 0:00:09.7]} 54... Nd6 {[%clk 0:00:05.3]} 55. Re1 {[%clk 0:00:09.1]} 55...
Nf5 {[%clk 0:00:05.3]} 56. Re2 {[%clk 0:00:09.1]} 56... Nd6 {[%clk 0:00:05.5]}
57. Bd3 {[%clk 0:00:09.5]} 57... Nf5 {[%clk 0:00:05.5]} 58. Ra2 {[%clk
0:00:09.5]} 58... Nd6 {[%clk 0:00:05.4]} 59. Ra6 {[%clk 0:00:09.2]} 59... Bc5
{[%clk 0:00:05.2]} 60. Rc6 {[%clk 0:00:08.8]} 60... Bb4 {[%clk 0:00:05.4]} 61.
Kg2 {[%clk 0:00:07.3]} 61... Kf6 {[%clk 0:00:05]} 62. Kf3 {[%clk 0:00:07.8]}
62... Ke7 {[%clk 0:00:04.7]} 63. Bxg6 {[%clk 0:00:07.5]} 63... e4+ {[%clk
0:00:04]} 64. Bxe4 {[%clk 0:00:07.4]} 64... Nxe4 {[%clk 0:00:03]} 65. Kxe4
{[%clk 0:00:07.7]} 65... Be1 {[%clk 0:00:03.9]} 66. Kf3 {[%clk 0:00:07.8]} 66...
Kf6 {[%clk 0:00:04.8]} 67. Rc5 {[%clk 0:00:07.6]} 67... Kg6 {[%clk 0:00:04.6]}
68. Re5 {[%clk 0:00:07.8]} 68... Bc3 {[%clk 0:00:05]} 69. Rxe6+ {[%clk
0:00:08.2]} 69... Kg7 {[%clk 0:00:05.7]} 70. Rc6 {[%clk 0:00:08.5]} 70... Bd4
{[%clk 0:00:05.5]} 71. Kf4 {[%clk 0:00:08.5]} 71... Bf6 {[%clk 0:00:03.3]} 72.
Kf5 {[%clk 0:00:07.1]} 72... Bd8 {[%clk 0:00:02.7]} 73. Rc4 {[%clk 0:00:06]}
73... Kh6 {[%clk 0:00:01.8]} 74. Rc2 {[%clk 0:00:04.5]} 74... Bc7 {[%clk
0:00:02]} 75. Rc6+ {[%clk 0:00:03.8]} 75... Kg7 {[%clk 0:00:02.1]} 76. Rxc7+
{[%clk 0:00:04.2]} 1-0

[Event "Late-Titled-Tuesday-Blitz-January-16-2024"]
[Site "Chess.com"]
[Date "2024.01.16"]
[Round "3"]
[White "Yaacovn"]
[Black "ValeriyGrinev"]
[Result "1-0"]
[WhiteElo "2897"]
[BlackElo "2568"]
[TimeControl "180+1"]
[EndTime "14:29:47 PST"]
[Termination "Yaacovn won by resignation"]

1. d4 {[%clk 0:02:52.3]} 1... Nf6 {[%clk 0:03:00.6]} 2. e3 {[%clk 0:02:52.3]}
2... g6 {[%clk 0:03:00.5]} 3. Nf3 {[%clk 0:02:49.9]} 3... Bg7 {[%clk 0:03:00.8]}
4. Be2 {[%clk 0:02:49.8]} 4... O-O {[%clk 0:03:01.7]} 5. O-O {[%clk 0:02:50.1]}
5... d6 {[%clk 0:03:02.1]} 6. b3 {[%clk 0:02:50.6]} 6... Nbd7 {[%clk 0:03:02.3]}
7. Bb2 {[%clk 0:02:50.8]} 7... e5 {[%clk 0:02:59.8]} 8. dxe5 {[%clk 0:02:50.7]}
8... Ng4 {[%clk 0:02:59.9]} 9. c4 {[%clk 0:02:50.3]} 9... Ngxe5 {[%clk
0:02:59.6]} 10. Nxe5 {[%clk 0:02:50.5]} 10... dxe5 {[%clk 0:02:58.8]} 11. Nc3
{[%clk 0:02:49.8]} 11... c6 {[%clk 0:02:58]} 12. Ne4 {[%clk 0:02:49.6]} 12...
Qe7 {[%clk 0:02:50.8]} 13. Qd6 {[%clk 0:02:46.9]} 13... Qxd6 {[%clk 0:02:45.6]}
14. Nxd6 {[%clk 0:02:47.8]} 14... Nc5 {[%clk 0:02:41.7]} 15. Ba3 {[%clk
0:02:47.3]} 15... Ne6 {[%clk 0:02:41.7]} 16. Rad1 {[%clk 0:02:45]} 16... Rd8
{[%clk 0:02:34.6]} 17. Rd2 {[%clk 0:02:44.4]} 17... Bf8 {[%clk 0:02:25.2]} 18.
Rfd1 {[%clk 0:02:44.1]} 18... Bxd6 {[%clk 0:02:21.5]} 19. Bxd6 {[%clk
0:02:37.1]} 19... f6 {[%clk 0:02:20.9]} 20. f4 {[%clk 0:02:25.2]} 20... exf4
{[%clk 0:02:18.6]} 21. exf4 {[%clk 0:02:26.1]} 21... b6 {[%clk 0:02:17.2]} 22.
Bf3 {[%clk 0:02:12.6]} 22... Bb7 {[%clk 0:02:16.9]} 23. Be7 {[%clk 0:02:08.9]}
23... Rxd2 {[%clk 0:02:07.6]} 24. Rxd2 {[%clk 0:02:09.3]} 24... Kf7 {[%clk
0:01:42.4]} 25. Ba3 {[%clk 0:01:51.7]} 25... Rd8 {[%clk 0:01:40.7]} 26. Rxd8
{[%clk 0:01:40.7]} 26... Nxd8 {[%clk 0:01:41.6]} 27. c5 {[%clk 0:01:36.3]} 27...
Ne6 {[%clk 0:01:34.8]} 28. cxb6 {[%clk 0:01:29.7]} 28... axb6 {[%clk 0:01:35.7]}
29. g3 {[%clk 0:01:29]} 29... Nd4 {[%clk 0:01:30]} 30. Bg2 {[%clk 0:01:26.1]}
30... Ba6 {[%clk 0:01:28.8]} 31. Bb2 {[%clk 0:01:25.1]} 31... c5 {[%clk
0:01:29.2]} 32. Bd5+ {[%clk 0:01:22]} 32... Ke7 {[%clk 0:01:29.2]} 33. Kf2
{[%clk 0:01:19.5]} 33... Bd3 {[%clk 0:01:17.3]} 34. Ke3 {[%clk 0:01:07.7]} 34...
Bb1 {[%clk 0:01:17.3]} 35. a3 {[%clk 0:01:02.9]} 35... Nf5+ {[%clk 0:01:15]} 36.
Kd2 {[%clk 0:01:00.8]} 36... Nd6 {[%clk 0:01:13.7]} 37. Bg8 {[%clk 0:00:55.2]}
37... h6 {[%clk 0:01:11.9]} 38. Ke3 {[%clk 0:00:52.1]} 38... Nf5+ {[%clk
0:01:08.6]} 39. Kf3 {[%clk 0:00:48.8]} 39... Nd4+ {[%clk 0:01:02.9]} 40. Bxd4
{[%clk 0:00:44.7]} 40... cxd4 {[%clk 0:01:02.3]} 41. Bc4 {[%clk 0:00:43.2]}
41... g5 {[%clk 0:01:00.4]} 42. b4 {[%clk 0:00:41.1]} 42... Bc2 {[%clk
0:00:56.8]} 43. Ke2 {[%clk 0:00:39.4]} 43... Kd6 {[%clk 0:00:55.2]} 44. Kd2
{[%clk 0:00:39.6]} 44... Be4 {[%clk 0:00:53.3]} 45. h4 {[%clk 0:00:37.3]} 45...
gxh4 {[%clk 0:00:52.4]} 46. gxh4 {[%clk 0:00:37.6]} 46... Bf5 {[%clk 0:00:45]}
47. Bd3 {[%clk 0:00:30.8]} 47... Bd7 {[%clk 0:00:43.7]} 48. Be4 {[%clk
0:00:30.9]} 48... Bb5 {[%clk 0:00:43.8]} 49. Kc2 {[%clk 0:00:31.1]} 49... Bc4
{[%clk 0:00:43.3]} 50. Kc1 {[%clk 0:00:29.7]} 50... Bd5 {[%clk 0:00:39.1]} 51.
Bd3 {[%clk 0:00:28.2]} 51... Bc6 {[%clk 0:00:38]} 52. Kd2 {[%clk 0:00:27.4]}
52... Kd5 {[%clk 0:00:35.9]} 53. Bf1 {[%clk 0:00:26.4]} 53... Ba4 {[%clk
0:00:33.6]} 54. Bd3 {[%clk 0:00:24.7]} 54... Be8 {[%clk 0:00:33]} 55. Kc2 {[%clk
0:00:22.7]} 55... Ba4+ {[%clk 0:00:32.2]} 56. Kb2 {[%clk 0:00:22.8]} 56... Bd1
{[%clk 0:00:29.9]} 57. Ka2 {[%clk 0:00:21.4]} 57... Ba4 {[%clk 0:00:29.9]} 58.
Kb2 {[%clk 0:00:21.4]} 58... Bd1 {[%clk 0:00:30.1]} 59. Kc1 {[%clk 0:00:21.4]}
59... Ba4 {[%clk 0:00:30.3]} 60. Kd2 {[%clk 0:00:21.8]} 60... Be8 {[%clk
0:00:30.2]} 61. Bf5 {[%clk 0:00:18.6]} 61... Kc4 {[%clk 0:00:29.8]} 62. Be6+
{[%clk 0:00:18.5]} 62... Kb5 {[%clk 0:00:28.4]} 63. Kd3 {[%clk 0:00:19.1]} 63...
Ka4 {[%clk 0:00:29]} 64. Kxd4 {[%clk 0:00:19.3]} 64... Kxa3 {[%clk 0:00:29.6]}
65. Kc3 {[%clk 0:00:19.4]} 65... Ka4 {[%clk 0:00:29.2]} 66. Bc4 {[%clk 0:00:19]}
66... Bc6 {[%clk 0:00:28.8]} 67. Ba6 {[%clk 0:00:18.4]} 67... Bd5 {[%clk
0:00:28.4]} 68. Bd3 {[%clk 0:00:17.9]} 68... Ka3 {[%clk 0:00:28.3]} 69. Bb5
{[%clk 0:00:17.7]} 69... Be6 {[%clk 0:00:28.6]} 70. Bc6 {[%clk 0:00:17.8]} 70...
Bf7 {[%clk 0:00:28.5]} 71. Bd7 {[%clk 0:00:17.8]} 71... Bd5 {[%clk 0:00:28.6]}
72. Bf5 {[%clk 0:00:17.8]} 72... Bf7 {[%clk 0:00:28.7]} 73. Bd3 {[%clk
0:00:17.9]} 73... Ka4 {[%clk 0:00:28]} 74. Be2 {[%clk 0:00:18]} 74... Ka3 {[%clk
0:00:28.4]} 75. Bd1 {[%clk 0:00:17]} 75... Be6 {[%clk 0:00:27.8]} 76. Bc2 {[%clk
0:00:17.3]} 76... Bf7 {[%clk 0:00:28]} 77. Be4 {[%clk 0:00:17]} 77... Be6 {[%clk
0:00:28.3]} 78. Bc6 {[%clk 0:00:17.3]} 78... Bf7 {[%clk 0:00:28.7]} 79. Bb5
{[%clk 0:00:16.6]} 79... Be6 {[%clk 0:00:28.8]} 80. Bc4 {[%clk 0:00:16.8]} 80...
Bd7 {[%clk 0:00:28.8]} 81. Bd5 {[%clk 0:00:17]} 81... Bb5 {[%clk 0:00:28.7]} 82.
Bb3 {[%clk 0:00:17.1]} 82... Be2 {[%clk 0:00:28.1]} 83. Be6 {[%clk 0:00:16.6]}
83... Bf1 {[%clk 0:00:27.7]} 84. Bc4 {[%clk 0:00:16]} 84... Bg2 {[%clk
0:00:27.2]} 85. Bb5 {[%clk 0:00:15.6]} 85... Bd5 {[%clk 0:00:27.2]} 86. Bd7
{[%clk 0:00:15.5]} 86... Bf7 {[%clk 0:00:27.3]} 87. b5 {[%clk 0:00:13.5]} 87...
Ka4 {[%clk 0:00:26.8]} 88. Kd4 {[%clk 0:00:13.7]} 88... Kb4 {[%clk 0:00:26.8]}
89. Ke4 {[%clk 0:00:13.9]} 89... Bg6+ {[%clk 0:00:23.9]} 90. Kd5 {[%clk
0:00:14.1]} 90... Bd3 {[%clk 0:00:22.6]} 91. Ke6 {[%clk 0:00:13.9]} 91... Bxb5
{[%clk 0:00:23]} 92. Bxb5 {[%clk 0:00:13.3]} 92... Kxb5 {[%clk 0:00:23.9]} 93.
Kxf6 {[%clk 0:00:13.9]} 93... Kc4 {[%clk 0:00:22]} 94. Kg7 {[%clk 0:00:14]}
94... b5 {[%clk 0:00:22.9]} 95. f5 {[%clk 0:00:14.6]} 95... b4 {[%clk
0:00:23.8]} 96. f6 {[%clk 0:00:15.5]} 96... b3 {[%clk 0:00:24.5]} 97. f7 {[%clk
0:00:16.4]} 97... b2 {[%clk 0:00:25.3]} 98. f8=Q {[%clk 0:00:17.3]} 98... b1=Q
{[%clk 0:00:25.9]} 99. Qf7+ {[%clk 0:00:17.7]} 99... Kd4 {[%clk 0:00:25.7]} 100.
Qf6+ {[%clk 0:00:17.7]} 100... Kd5 {[%clk 0:00:25.4]} 101. Kxh6 {[%clk
0:00:17.4]} 101... Qh1 {[%clk 0:00:20.6]} 102. h5 {[%clk 0:00:17.1]} 102... Kc5
{[%clk 0:00:20.8]} 103. Kg6 {[%clk 0:00:17]} 103... Kb4 {[%clk 0:00:17.6]} 104.
h6 {[%clk 0:00:16.9]} 104... Qg2+ {[%clk 0:00:17.5]} 105. Qg5 {[%clk 0:00:16.9]}
105... Qc6+ {[%clk 0:00:17.7]} 106. Qf6 {[%clk 0:00:17.1]} 106... Qe8+ {[%clk
0:00:17.9]} 107. Kg7 {[%clk 0:00:17.2]} 107... Qd7+ {[%clk 0:00:17.7]} 108. Qf7
{[%clk 0:00:17.7]} 108... Qg4+ {[%clk 0:00:18.3]} 109. Kh7 {[%clk 0:00:17.8]}
109... Qe4+ {[%clk 0:00:18.6]} 110. Qg6 {[%clk 0:00:17.1]} 110... Qe7+ {[%clk
0:00:19.2]} 111. Qg7 {[%clk 0:00:17.2]} 111... Qe4+ {[%clk 0:00:19.7]} 112. Kg8
{[%clk 0:00:16.4]} 112... Qe8+ {[%clk 0:00:19.8]} 113. Qf8+ {[%clk 0:00:16.8]}
113... Qxf8+ {[%clk 0:00:20.2]} 114. Kxf8 {[%clk 0:00:17.7]} 1-0